fUST/lending_fUST_20260304
["ID","MTS","AMOUNT","RATE_DAILY","PERIOD"]
[407642259,1772598642000,-500.0,0.00010958,2]
[407642261,1772598642010,-500.0,0.00010958,2]
[407642263,1772598642019,-753.53,0.00010958,2]
[407642265,1772598642028,-499.0,0.00010958,2]
[407642267,1772598642038,-500.0,0.00010958,2]
[407642269,1772598642048,-500.0,0.00010958,2]
[407642271,1772598642057,-583.94,0.00010958,2]
[407642273,1772598642066,-624.57218368,0.00010958,2]
[407642275,1772598642076,-500.0,0.00010958,2]
[407642277,1772598642086,-500.0,0.00010958,2]
[407642279,1772598642095,-1778.71,0.00010958,2]
[407642281,1772598642105,-500.0,0.00010958,2]
[407642283,1772598642115,-500.0,0.00010958,2]
[407642285,1772598642124,-500.0,0.00010958,2]
[407642287,1772598642137,-1313.24,0.00010958,2]
[407642289,1772598642147,-731.47,0.00010958,2]
[407642292,1772598642158,-505.54776127,0.00010958,2]
[407642294,1772598642167,-500.0,0.00010958,2]
[407642296,1772598642177,-525.65,0.00010958,2]
[407642298,1772598642187,-500.0,0.00010958,2]
[407642300,1772598642197,-500.0,0.00010958,2]
[407642302,1772598642207,-635.37,0.00010958,2]
[407642304,1772598642216,-500.0,0.00010958,2]
[407642306,1772598642226,-6789.34,0.00010958,2]
[407642308,1772598642236,-500.0,0.00010958,2]
[407642310,1772598642246,-500.0,0.00010958,2]
[407642312,1772598642256,-900.19,0.00010958,2]
[407642314,1772598642265,-500.0,0.00010958,2]
[407642316,1772598642275,-2986.05,0.00010958,2]
[407642318,1772598642284,-500.0,0.00010958,2]
[407642320,1772598642294,-500.0,0.00010958,2]
[407642322,1772598642304,-500.0,0.00010958,2]
[407642325,1772598642314,-184.54658701,0.00010958,2]
[407642327,1772598642323,-500.0,0.00010958,2]
[407642330,1772598642333,-500.0,0.00010958,2]
[407642335,1772598642343,-500.0,0.00010958,2]
[407642338,1772598642352,-500.0,0.00010958,2]
[407642341,1772598642362,-500.0,0.00010958,2]
[407642343,1772598642372,-6057.02,0.00010958,2]
[407642345,1772598642385,-868.77,0.00010958,2]
[407642347,1772598642394,-500.0,0.00010958,2]
[407642349,1772598642404,-500.0,0.00010958,2]
[407642352,1772598642414,-1004.29,0.00010958,2]
[407642354,1772598642426,-722.6,0.00010958,2]
[407642357,1772598642436,-500.0,0.00010958,2]
[407642360,1772598642445,-500.0,0.00010958,2]
[407642362,1772598642455,-4705.64,0.00010958,2]
[407642364,1772598642465,-1280.84,0.00010958,2]
[407642366,1772598642475,-500.0,0.00010958,2]
[407642369,1772598642485,-500.0,0.00010958,2]
[407642372,1772598642495,-562.14,0.00010958,2]
[407642375,1772598642505,-500.0,0.00010958,2]
[407642378,1772598642514,-615.44,0.00010958,2]
[407642381,1772598642524,-1138.66,0.00010958,2]
[407642384,1772598642534,-500.0,0.00010958,2]
[407642387,1772598642544,-500.0,0.00010958,2]
[407642389,1772598642553,-1827.52,0.00010958,2]
[407642391,1772598642562,-500.0,0.00010958,2]
[407642394,1772598642573,-741.58,0.00010958,2]
[407642396,1772598642582,-473.4154706,0.00010958,2]
[407642399,1772598642592,-899.43,0.00010958,2]
[407642401,1772598642602,-500.0,0.00010958,2]
[407642402,1772598642611,-2807.85,0.00010958,2]
[407642405,1772598642622,-1506.54,0.00010958,2]
[407642407,1772598642631,-888.96,0.00010958,2]
[407642409,1772598642645,-500.0,0.00010958,2]
[407642411,1772598642658,-151.82426107,0.00010958,2]
[407642413,1772598642668,-18810.81679848,0.00010958,2]
[407642415,1772598642678,-1620.44,0.00010958,2]
[407642417,1772598642687,-500.0,0.00010958,2]
[407642419,1772598642698,-1615.77,0.00010958,2]
[407642421,1772598642707,-1034.38,0.00010958,2]
[407642423,1772598642717,-500.0,0.00010958,2]
[407642425,1772598642726,-2129.14,0.00010958,2]
[407642427,1772598642735,-500.0,0.00010958,2]
[407642429,1772598642745,-284.99818285,0.00010958,2]
[407642431,1772598642755,-1741.91,0.00010958,2]
[407642433,1772598642765,-608.48,0.00010958,2]
[407642435,1772598642775,-1262.76,0.00010958,2]
[407642437,1772598642784,-500.0,0.00010958,2]
[407642439,1772598642794,-2474.63,0.00010958,2]
[407642441,1772598642805,-500.0,0.00010958,2]
[407642443,1772598642814,-1775.93,0.00010958,2]
[407642445,1772598642823,-617.03664258,0.00010958,2]
[407642447,1772598642833,-501.38,0.00010958,2]
[407642449,1772598642843,-534.47147865,0.00010958,2]
[407642451,1772598642853,-1936.18,0.00010958,2]
[407642453,1772598642862,-975.43,0.00010958,2]
[407642455,1772598642872,-500.0,0.00010958,2]
[407642457,1772598642883,-500.0,0.00010958,2]
[407642459,1772598642894,-873.15,0.00010958,2]
[407642461,1772598642904,-2073.66,0.00010958,2]
[407642463,1772598642913,-500.0,0.00010958,2]
[407642466,1772598642924,-500.0,0.00010958,2]
[407642468,1772598642933,-3943.28,0.00010958,2]
[407642469,1772598642942,-1075.03,0.00010958,2]
[407642472,1772598642952,-500.0,0.00010958,2]
[407642473,1772598642962,-598.33735616,0.00010958,2]
[407642476,1772598642972,-500.0,0.00010958,2]
[407642478,1772598642982,-2656.22,0.00010958,2]
[407642480,1772598642992,-930.0,0.00010958,2]
[407642482,1772598643003,-500.0,0.00010958,2]
[407642484,1772598643012,-781.13,0.00010958,2]
[407642485,1772598643022,-500.0,0.00010958,2]
[407642495,1772598643304,-2634.28,0.00010958,2]
[407642496,1772598643314,-793.65,0.00010958,2]
[407642497,1772598643323,-500.0,0.00010958,2]
[407642498,1772598643332,-708.84,0.00010958,2]
[407642499,1772598643341,-500.0,0.00010958,2]
[407642500,1772598643350,-523.13,0.00010958,2]
[407642501,1772598643359,-691.11,0.00010958,2]
[407642502,1772598643368,-500.0,0.00010958,2]
[407642503,1772598643380,-500.0,0.00010958,2]
[407642504,1772598643390,-500.0,0.00010958,2]
[407642505,1772598643399,-2531.31,0.00010958,2]
[407642506,1772598643408,-500.0,0.00010958,2]
[407642507,1772598643419,-500.0,0.00010958,2]
[407642508,1772598643428,-500.0,0.00010958,2]
[407642510,1772598643438,-848.9,0.00010958,2]
[407642512,1772598643448,-811.54,0.00010958,2]
[407642514,1772598643457,-1182.32,0.00010958,2]
[407642516,1772598643467,-1135.81,0.00010958,2]
[407642517,1772598643476,-695.0,0.00010958,2]
[407642518,1772598643486,-611.12,0.00010958,2]
[407642519,1772598643495,-500.51566272,0.00010958,2]
[407642520,1772598643505,-500.0,0.00010958,2]
[407642522,1772598643515,-500.0,0.00010958,2]
[407642523,1772598643525,-3869.0,0.00010958,2]
[407642524,1772598643534,-769.15,0.00010958,2]
[407642525,1772598643544,-1944.5,0.00010958,2]
[407642526,1772598643554,-500.0,0.00010958,2]
[407642527,1772598643563,-500.0,0.00010958,2]
[407642528,1772598643572,-500.0,0.00010958,2]
[407642529,1772598643582,-500.0,0.00010958,2]
[407642530,1772598643592,-618.05,0.00010958,2]
[407642531,1772598643602,-322.55754124,0.00010958,2]
[407642532,1772598643611,-500.0,0.00010958,2]
[407642533,1772598643621,-500.0,0.00010958,2]
[407642534,1772598643631,-500.0,0.00010958,2]
[407642535,1772598643641,-500.0,0.00010958,2]
[407642536,1772598643651,-2971.59,0.00010958,2]
[407642537,1772598643660,-500.0,0.00010958,2]
[407642538,1772598643670,-500.0,0.00010958,2]
[407642539,1772598643679,-1967.76,0.00010958,2]
[407642540,1772598643689,-1271.21,0.00010958,2]
[407642541,1772598643699,-500.0,0.00010958,2]
[407642542,1772598643708,-500.0,0.00010958,2]
[407642543,1772598643718,-698.64,0.00010958,2]
[407642544,1772598643727,-500.0,0.00010958,2]
[407642545,1772598643737,-500.0,0.00010958,2]
[407642546,1772598643746,-500.0,0.00010958,2]
[407642547,1772598643755,-500.0,0.00010958,2]
[407642548,1772598643766,-1219.65,0.00010958,2]
[407642549,1772598643776,-500.0,0.00010958,2]
[407642550,1772598643785,-500.0,0.00010958,2]
[407642551,1772598643794,-500.0,0.00010958,2]
[407642552,1772598643804,-1549.07,0.00010958,2]
[407642553,1772598643814,-500.0,0.00010958,2]
[407642554,1772598643823,-500.0,0.00010958,2]
[407642555,1772598643832,-500.0,0.00010958,2]
[407642556,1772598643842,-1206.82,0.00010958,2]
[407642557,1772598643851,-500.0,0.00010958,2]
[407642558,1772598643860,-555.78,0.00010958,2]
[407642559,1772598643869,-778.44,0.00010958,2]
[407642560,1772598643878,-1034.67,0.00010958,2]
[407642561,1772598643888,-1964.9,0.00010958,2]
[407642562,1772598643897,-500.0,0.00010958,2]
[407642563,1772598643907,-1305.96,0.00010958,2]
[407642564,1772598643916,-367.25823946,0.00010958,2]
[407642565,1772598643925,-500.0,0.00010958,2]
[407642566,1772598643935,-500.0,0.00010958,2]
[407642567,1772598643945,-500.0,0.00010958,2]
[407642568,1772598643954,-1863.27,0.00010958,2]
[407642569,1772598643963,-500.0,0.00010958,2]
[407642570,1772598643972,-500.0,0.00010958,2]
[407642571,1772598643981,-500.0,0.00010958,2]
[407642572,1772598643990,-500.0,0.00010958,2]
[407642573,1772598644000,-1241.14,0.00010958,2]
[407642574,1772598644010,-964.34,0.00010958,2]
[407642575,1772598644020,-500.0,0.00010958,2]
[407642576,1772598644029,-500.0,0.00010958,2]
[407642577,1772598644042,-6975.34,0.00010958,2]
[407642578,1772598644051,-737.56,0.00010958,2]
[407642579,1772598644060,-1113.41,0.00010958,2]
[407642580,1772598644070,-247.75896234,0.00010958,2]
[407642581,1772598644079,-574.29,0.00010958,2]
[407642582,1772598644089,-2357.49,0.00010958,2]
[407642583,1772598644099,-500.0,0.00010958,2]
[407642584,1772598644108,-1011.77,0.00010958,2]
[407642585,1772598644118,-1169.72,0.00010958,2]
[407642586,1772598644128,-633.92,0.00010958,2]
[407642587,1772598644137,-500.0,0.00010958,2]
[407642588,1772598644146,-1416.71,0.00010958,2]
[407642589,1772598644155,-500.0,0.00010958,2]
[407642590,1772598644165,-503.57,0.00010958,2]
[407642591,1772598644174,-500.0,0.00010958,2]
[407642592,1772598644183,-1476.71,0.00010958,2]
[407642593,1772598644193,-742.38,0.00010958,2]
[407642594,1772598644203,-500.0,0.00010958,2]
[407642595,1772598644213,-500.0,0.00010958,2]
[407642596,1772598644223,-500.0,0.00010958,2]
[407642597,1772598644232,-500.0,0.00010958,2]
[407642598,1772598644241,-4643.77,0.00010958,2]
[407642599,1772598644251,-2423.17,0.00010958,2]
[407642600,1772598644262,-500.0,0.00010958,2]
[407642601,1772598644271,-500.0,0.00010958,2]
[407642602,1772598644280,-500.0,0.00010958,2]
[407642603,1772598644290,-500.0,0.00010958,2]
[407642604,1772598644300,-500.0,0.00010958,2]
[407642605,1772598644309,-1025.4,0.00010958,2]
[407642606,1772598644318,-902.61,0.00010958,2]
[407642607,1772598644328,-500.0,0.00010958,2]
[407642608,1772598644337,-563.68,0.00010958,2]
[407642609,1772598644347,-1226.52,0.00010958,2]
[407642610,1772598644356,-1958.64,0.00010958,2]
[407642611,1772598644365,-500.0,0.00010958,2]
[407642612,1772598644375,-511.44,0.00010958,2]
[407642613,1772598644388,-583.98,0.00010958,2]
[407642614,1772598644398,-500.0,0.00010958,2]
[407642615,1772598644407,-914.95,0.00010958,2]
[407642616,1772598644417,-699.93,0.00010958,2]
[407642617,1772598644428,-500.0,0.00010958,2]
[407642618,1772598644437,-500.0,0.00010958,2]
[407642619,1772598644446,-1643.39,0.00010958,2]
[407642620,1772598644456,-500.0,0.00010958,2]
[407642621,1772598644467,-500.0,0.00010958,2]
[407642622,1772598644477,-500.0,0.00010958,2]
[407642623,1772598644487,-884.41,0.00010958,2]
[407642624,1772598644497,-990.35,0.00010958,2]
[407642625,1772598644507,-2991.67,0.00010958,2]
[407642626,1772598644518,-500.0,0.00010958,2]
[407642627,1772598644528,-2260.45,0.00010958,2]
[407642628,1772598644538,-656.64,0.00010958,2]
[407642629,1772598644547,-971.79,0.00010958,2]
[407642630,1772598644557,-500.0,0.00010958,2]
[407642631,1772598644568,-1279.27,0.00010958,2]
[407642632,1772598644577,-500.0,0.00010958,2]
[407642633,1772598644587,-704.59,0.00010958,2]
[407642634,1772598644598,-515.86,0.00010958,2]
[407642635,1772598644609,-500.0,0.00010958,2]
[407642636,1772598644619,-500.0,0.00010958,2]
[407642637,1772598644629,-532.05,0.00010958,2]
[407642638,1772598644639,-2991.71,0.00010958,2]
[407642639,1772598644648,-500.0,0.00010958,2]
[407642640,1772598644658,-3114.07,0.00010958,2]
[407642641,1772598644668,-500.0,0.00010958,2]
[407642642,1772598644677,-1730.46,0.00010958,2]
[407642643,1772598644687,-1731.77,0.00010958,2]
[407642644,1772598644697,-500.0,0.00010958,2]
[407642645,1772598644706,-500.0,0.00010958,2]
[407642646,1772598644716,-500.0,0.00010958,2]
[407642647,1772598644725,-1047.71,0.00010958,2]
[407642648,1772598644735,-1654.4,0.00010958,2]
[407642649,1772598644745,-1097.55,0.00010958,2]
[407642650,1772598644755,-500.0,0.00010958,2]
[407642651,1772598644764,-500.0,0.00010958,2]
[407642652,1772598644774,-500.0,0.00010958,2]
[407642653,1772598644783,-3942.2,0.00010958,2]
[407642654,1772598644793,-8815.22,0.00010958,2]
[407642655,1772598644802,-850.3,0.00010958,2]
[407642656,1772598644814,-500.0,0.00010958,2]
[407642657,1772598644823,-500.0,0.00010958,2]
[407642658,1772598644833,-500.0,0.00010958,2]
[407642659,1772598644843,-183.17492906,0.00010958,2]
[407642660,1772598644853,-500.0,0.00010958,2]
[407642661,1772598644863,-2866.72,0.00010958,2]
[407642662,1772598644873,-2224.13,0.00010958,2]
[407642663,1772598644882,-4221.66,0.00010958,2]
[407642664,1772598644891,-2288.49,0.00010958,2]
[407642665,1772598644901,-282.41498772,0.00010958,2]
[407642666,1772598644910,-4843.21,0.00010958,2]
[407642667,1772598644920,-1386.2,0.00010958,2]
[407642668,1772598644929,-514.93314695,0.00010958,2]
[407642669,1772598644938,-2768.38,0.00010958,2]
[407642670,1772598644948,-946.05,0.00010958,2]
[407642671,1772598644957,-923.9,0.00010958,2]
[407642672,1772598644967,-500.0,0.00010958,2]
[407642673,1772598644977,-500.0,0.00010958,2]
[407642674,1772598644986,-500.0,0.00010958,2]
[407642675,1772598644996,-1091.76,0.00010958,2]
[407642676,1772598645006,-1554.12,0.00010958,2]
[407642677,1772598645015,-1073.38,0.00010958,2]
[407642678,1772598645024,-500.0,0.00010958,2]
[407642679,1772598645034,-500.0,0.00010958,2]
[407642680,1772598645047,-500.0,0.00010958,2]
[407642681,1772598645057,-500.0,0.00010958,2]
[407642682,1772598645067,-4628.73,0.00010958,2]
[407642683,1772598645076,-803.58,0.00010958,2]
[407642684,1772598645087,-3386.65,0.00010958,2]
[407642685,1772598645096,-1000.0,0.00010958,2]
[407642686,1772598645106,-2075.38,0.00010958,2]
[407642687,1772598645115,-1608.86,0.00010958,2]
[407642688,1772598645125,-500.0,0.00010958,2]
[407642689,1772598645135,-500.0,0.00010958,2]
[407642690,1772598645144,-500.0,0.00010958,2]
[407642691,1772598645154,-4070.61,0.00010958,2]
[407642692,1772598645163,-802.37,0.00010958,2]
[407642693,1772598645173,-500.0,0.00010958,2]
[407642694,1772598645182,-500.0,0.00010958,2]
[407642695,1772598645191,-500.0,0.00010958,2]
[407642696,1772598645200,-500.0,0.00010958,2]
[407642697,1772598645210,-500.0,0.00010958,2]
[407642698,1772598645219,-6645.74,0.00010958,2]
[407642699,1772598645229,-500.0,0.00010958,2]
[407642700,1772598645238,-500.0,0.00010958,2]
[407642701,1772598645248,-500.0,0.00010958,2]
[407642702,1772598645257,-500.0,0.00010958,2]
[407642703,1772598645267,-15576.74,0.00010958,2]
[407642704,1772598645276,-16117.79,0.00010958,2]
[407642705,1772598645286,-484.82510236,0.00010958,2]
[407642706,1772598645295,-500.0,0.00010958,2]
[407642707,1772598645304,-500.0,0.00010958,2]
[407642708,1772598645314,-500.0,0.00010958,2]
[407642709,1772598645324,-500.0,0.00010958,2]
[407642710,1772598645333,-500.0,0.00010958,2]
[407642711,1772598645343,-505.4,0.00010958,2]
[407642712,1772598645353,-500.0,0.00010958,2]
[407642713,1772598645362,-500.0,0.00010958,2]
[407642714,1772598645372,-539.26,0.00010958,2]
[407642716,1772598645383,-3487.81,0.00010958,2]
[407642717,1772598645404,-500.0,0.00010958,2]
[407642718,1772598645413,-500.0,0.00010958,2]
[407642719,1772598645423,-500.0,0.00010958,2]
[407642720,1772598645433,-752.7,0.00010958,2]
[407642722,1772598645446,-3705.2,0.00010958,2]
[407642723,1772598645456,-1049.59,0.00010958,2]
[407642724,1772598645467,-500.0,0.00010958,2]
[407642725,1772598645477,-500.0,0.00010958,2]
[407642726,1772598645487,-959.83,0.00010958,2]
[407642728,1772598645496,-500.0,0.00010958,2]
[407642730,1772598645505,-1884.05,0.00010958,2]
[407642731,1772598645515,-500.0,0.00010958,2]
[407642732,1772598645525,-500.0,0.00010958,2]
[407642733,1772598645534,-500.0,0.00010958,2]
[407642734,1772598645544,-672.97,0.00010958,2]
[407642735,1772598645553,-500.0,0.00010958,2]
[407642736,1772598645563,-1079.31,0.00010958,2]
[407642737,1772598645572,-741.72,0.00010958,2]
[407642738,1772598645583,-3085.26,0.00010958,2]
[407642739,1772598645592,-500.0,0.00010958,2]
[407642740,1772598645601,-926.61,0.00010958,2]
[407642741,1772598645611,-1151.85,0.00010958,2]
[407642742,1772598645621,-500.0,0.00010958,2]
[407642743,1772598645704,-500.0,0.00010958,2]
[407642745,1772598645714,-500.0,0.00010958,2]
[407642746,1772598645724,-500.0,0.00010958,2]
[407642747,1772598645733,-700.17,0.00010958,2]
[407642748,1772598645742,-4767.57,0.00010958,2]
[407642749,1772598645752,-500.0,0.00010958,2]
[407642750,1772598645761,-500.0,0.00010958,2]
[407642752,1772598645770,-500.0,0.00010958,2]
[407642754,1772598645779,-3393.98,0.00010958,2]
[407642756,1772598645789,-2230.33,0.00010958,2]
[407642757,1772598645797,-2481.67,0.00010958,2]
[407642758,1772598645807,-500.0,0.00010958,2]
[407642759,1772598645816,-1900.06,0.00010958,2]
[407642760,1772598645825,-862.2,0.00010958,2]
[407642761,1772598645835,-500.0,0.00010958,2]
[407642762,1772598645843,-500.0,0.00010958,2]
[407642763,1772598645853,-500.0,0.00010958,2]
[407642764,1772598645862,-2505.33,0.00010958,2]
[407642765,1772598645871,-500.0,0.00010958,2]
[407642766,1772598645881,-500.0,0.00010958,2]
[407642767,1772598645891,-3935.65,0.00010958,2]
[407642768,1772598645900,-500.0,0.00010958,2]
[407642769,1772598645909,-500.0,0.00010958,2]
[407642770,1772598645918,-7850.67,0.00010958,2]
[407642771,1772598645928,-500.0,0.00010958,2]
[407642772,1772598645937,-500.0,0.00010958,2]
[407642773,1772598645947,-500.0,0.00010958,2]
[407642774,1772598645958,-983.06,0.00010958,2]
[407642775,1772598645967,-500.64474474,0.00010958,2]
[407642776,1772598645976,-6919.64,0.00010958,2]
[407642777,1772598645986,-6800.73,0.00010958,2]
[407642778,1772598645995,-500.0,0.00010958,2]
[407642779,1772598646005,-6451.97,0.00010958,2]
[407642780,1772598646015,-500.0,0.00010958,2]
[407642781,1772598646024,-1306.54,0.00010958,2]
[407642782,1772598646034,-743.35,0.00010958,2]
[407642783,1772598646043,-820.02,0.00010958,2]
[407642784,1772598646053,-1519.61,0.00010958,2]
[407642785,1772598646062,-500.0,0.00010958,2]
[407642786,1772598646071,-500.0,0.00010958,2]
[407642787,1772598646080,-1680.84,0.00010958,2]
[407642788,1772598646089,-1669.77,0.00010958,2]
[407642789,1772598646099,-1736.89,0.00010958,2]
[407642790,1772598646108,-500.0,0.00010958,2]
[407642791,1772598646117,-500.0,0.00010958,2]
[407642792,1772598646126,-42979.8,0.00010958,2]
[407642793,1772598646136,-828.99,0.00010958,2]
[407642794,1772598646145,-500.0,0.00010958,2]
[407642795,1772598646154,-500.0,0.00010958,2]
[407642796,1772598646163,-1049.9,0.00010958,2]
[407642797,1772598646172,-500.0,0.00010958,2]
[407642798,1772598646181,-500.0,0.00010958,2]
[407642799,1772598646191,-2231.75,0.00010958,2]
[407642800,1772598646200,-906.91,0.00010958,2]
[407642801,1772598646209,-536.55,0.00010958,2]
[407642802,1772598646218,-500.0,0.00010958,2]
[407642803,1772598646227,-2078.13,0.00010958,2]
[407642804,1772598646236,-8806.62,0.00010958,2]
[407642805,1772598646246,-500.0,0.00010958,2]
[407642806,1772598646256,-2092.88,0.00010958,2]
[407642807,1772598646265,-563.4,0.00010958,2]
[407642808,1772598646274,-614.78758994,0.00010958,2]
[407642809,1772598646283,-635.65,0.00010958,2]
[407642810,1772598646292,-624.20476069,0.00010958,2]
[407642811,1772598646302,-1595.62,0.00010958,2]
[407642812,1772598646311,-2945.21,0.00010958,2]
[407642813,1772598646320,-878.69,0.00010958,2]
[407642814,1772598646329,-511.98741526,0.00010958,2]
[407642815,1772598646338,-500.0,0.00010958,2]
[407642816,1772598646347,-500.0,0.00010958,2]
[407642817,1772598646356,-500.0,0.00010958,2]
[407642818,1772598646366,-1784.45,0.00010958,2]
[407642819,1772598646375,-500.0,0.00010958,2]
[407642820,1772598646388,-500.0,0.00010958,2]
[407642821,1772598646397,-1002.08,0.00010958,2]
[407642822,1772598646407,-7800.13,0.00010958,2]
[407642823,1772598646416,-1293.91015109,0.00010958,2]
[407642824,1772598648528,-500.0,0.00010601,2]
[407642825,1772598648718,-500.0,0.00010601,2]
[407642826,1772598648728,-500.0,0.00010601,2]
[407642827,1772598648739,-1239.07457887,0.00010848,2]
[407642828,1772598649281,-200.0,0.0001005,2]
[407642829,1772598649291,-300.0,0.00010848,2]
[407642830,1772598649303,-381.13145485,0.00010848,2]
[407642831,1772598649314,-6.93235903,0.00010958,2]
[407642833,1772599297675,214.4682641,9.422e-05,2]
[407642834,1772599560635,809.8936951,9.391e-05,2]
[407642836,1772599718179,460.5,0.0001,9]
[407642839,1772599729558,1000.0,0.0001,11]
[407642840,1772599739086,1000.0,0.0001,12]
[407642841,1772599760441,737.51,9.202e-05,2]
[407642845,1772599831124,1995.55664465,9.502e-05,2]
[407642869,1772599831814,-495.38777324,9.728e-05,2]
[407642871,1772599831823,-200.0,9.804e-05,2]
[407642873,1772599831833,-500.0,0.0001,2]
[407642875,1772599831842,-166.15419593,0.00010057,2]
[407642876,1772599831851,-500.0,0.00010392,30]
[407642879,1772599831861,-500.0,0.00010447,30]
[407642881,1772599831870,-175.50984309,0.00010492,2]
[407642883,1772599831880,-150.0,0.00010502,30]
[407642884,1772599831889,-2230.315306,0.00010587,2]
[407642886,1772599831898,-11703.52771852,0.00010588,2]
[407642888,1772599831908,-1200.0,0.00010588,2]
[407642890,1772599831917,-300.0,0.0001059,2]
[407642892,1772599831926,-301.15871736,0.00010591,2]
[407642894,1772599831936,-500.0,0.00010591,2]
[407642895,1772599831944,-172.17610256,0.00010591,2]
[407642897,1772599831954,-500.0,0.00010591,2]
[407642899,1772599831963,-500.0,0.00010591,2]
[407642901,1772599831972,-500.0,0.00010591,2]
[407642903,1772599831982,-500.0,0.00010591,2]
[407642904,1772599831991,-500.0,0.00010591,2]
[407642906,1772599832000,-222.43470313,0.00010591,2]
[407642910,1772599832035,-277.56529687,0.00010591,2]
[407642912,1772599832044,-236.41701704,0.00010591,2]
[407642914,1772599832054,-500.0,0.00010591,2]
[407642915,1772599832063,-178.20701905,0.00010591,2]
[407642932,1772599837998,-321.79298095,0.00010591,2]
[407642933,1772599838007,-500.0,0.00010591,2]
[407642934,1772599838017,-500.0,0.00010591,2]
[407642935,1772599838026,-500.0,0.00010591,2]
[407642936,1772599838035,-500.0,0.00010591,2]
[407642937,1772599838045,-500.0,0.00010591,2]
[407642938,1772599838055,-500.0,0.00010591,2]
[407642939,1772599838065,-60.21560184,0.00010591,2]
[407642940,1772599838076,-258.57358402,0.00010591,2]
[407642941,1772599838085,-500.0,0.00010591,2]
[407642942,1772599838094,-500.0,0.00010591,2]
[407642943,1772599838104,-500.0,0.00010591,2]
[407642944,1772599838113,-304.65834723,0.00010591,2]
[407642945,1772599838123,-500.0,0.00010591,2]
[407642946,1772599838133,-375.57533057,0.00010591,2]
[407642947,1772599838142,-500.0,0.00010591,2]
[407642948,1772599838151,-500.0,0.00010591,2]
[407642949,1772599838160,-500.0,0.00010591,2]
[407642950,1772599838169,-500.0,0.00010591,2]
[407642951,1772599838179,-500.0,0.00010591,2]
[407642952,1772599838188,-500.0,0.00010591,2]
[407642953,1772599838197,-500.0,0.00010591,2]
[407642954,1772599838207,-500.0,0.00010591,2]
[407642955,1772599838216,-500.0,0.00010591,2]
[407642956,1772599838226,-500.0,0.00010591,2]
[407642957,1772599838235,-500.0,0.00010591,2]
[407642958,1772599838245,-500.0,0.00010591,2]
[407642959,1772599838255,-500.0,0.00010591,2]
[407642960,1772599838264,-500.0,0.00010591,2]
[407642961,1772599838273,-500.0,0.00010591,2]
[407642962,1772599838282,-500.0,0.00010591,2]
[407642963,1772599838292,-500.0,0.00010591,2]
[407642964,1772599838301,-500.0,0.00010591,2]
[407642965,1772599838310,-500.0,0.00010591,2]
[407642966,1772599838319,-500.0,0.00010591,2]
[407642967,1772599838328,-540.24712057,0.00010591,2]
[407642968,1772599838337,-500.0,0.00010591,2]
[407642969,1772599838347,-500.0,0.00010591,2]
[407642970,1772599838357,-500.0,0.00010591,2]
[407642971,1772599838367,-500.0,0.00010591,2]